[Event "Gibraltar Amateurs A 2020"]
[Site "Caleta"]
[Date "2020.01.21"]
[Round "3.16"]
[White "Clare, Steve"]
[Black "Kovacevic, Aleksandar S"]
[Result "0-1"]
[ECO "C14"]
[WhiteElo "1632"]
[BlackElo "1804"]
[Annotator "NA RC"]
[PlyCount "90"]
[EventDate "2020.01.20"]
[EventType "swiss"]
[EventCountry "GGB"]
[SourceTitle "playchess.com"]
[Source "ChessBase"]
[SourceQuality "1"]
[TimeControl "6600+10"]

{[%evp 9,86,17,32767,28,38,56,32767,32767,32767,32767,32767,-71,32767,-47,-9,0,-9,-42,32767,-49,32767,32767,-18,-30,0,0,0,32767,32767,0,0,32767,32767,32767,0,32767,12,-16,0,-28,23,-81,116,124,211,-93,-73,32767,-50,-145,32767,-166,-171,-155,-138,32767,32767,32767,32767,32767,32767,32767,-159,32767,32767,32767,32767,-291,32767,-497,-520,-506,-547,-494,-570,-533,-429,-765,-847]} 1. e4 {[%emt 0:00:00]} e6 {[%emt 0:01:33]} 2. d4 {[%emt 0:00:00]} d5 {[%emt 0:00:14]} 3. Nc3 {[%emt 0:00:09]} Nf6 {[%emt 0:00:28]} 4. Bg5 {[%emt 0:02:48]} Be7 {[%emt 0:00:32]} 5. e5 {[%emt 0:00:40]} Ne4 {[%emt 0:00:34]} 6. Bxe7 {[%emt 0:00:53]} Qxe7 {[%emt 0:00:10]} 7. Nxe4 {[%emt 0:00:05]} dxe4 {[%emt 0:00:14]} 8. c3 {[%emt 0:01:56] C14: French: Classical System: 4 Bg5 Be7 main line} (8. a3 c5 9. Qg4 f5 10. exf6 Qxf6 11. Qh5+ g6 12. Qxc5 Nc6 13. Bb5 Bd7 14. Ne2 Rc8 15. Nc3 Qf4 16. d5 exd5 17. Nxd5 Qf8 18. Qe3 Qf5 19. O-O-O Kf7 20. Nc3 Rhe8 21. Rd5 Re5 22. g4 {1-0 (22) Berg,E (2581)-Hovhannisyan,M (2470) Maastricht 2016}) 8... b6 {[%emt 0:00:18]} 9. f3 $146 {[%emt 0:06:10]} ({Predecessor:} 9. Qg4 O-O 10. Qxe4 c6 11. Nf3 Bb7 12. Bd3 g6 13. O-O c5 14. Qe3 cxd4 15. cxd4 Nc6 {1-0 (24) Webner,D (2073)-Wuttke,M (1802) Bremen 2015}) 9... Bb7 {[%emt 0:03:40]} 10. Qe2 {[%emt 0:02:50]} (10. Qa4+ $11 {keeps the balance.} Nd7 11. Bb5) 10... O-O {[%emt 0:02:52]} 11. O-O-O {[%emt 0:00:37]} exf3 {[%emt 0:05:07]} 12. Nxf3 {[%emt 0:00:40]} c5 {[%emt 0:00:17]} 13. Qc2 {[%emt 0:01:50]} cxd4 {[%emt 0:01:10]} 14. Rxd4 {[%emt 0:01:00]} Bxf3 {[%emt 0:02:30]} 15. gxf3 {[%emt 0:00:08]} Nc6 {[%emt 0:00:30] Double Attack} 16. Re4 $1 {[%emt 0:04:16]} Qg5+ {[%emt 0:09:06]} 17. f4 {[%emt 0:03:25]} Qh6 {[%emt 0:00:14]} 18. Bb5 {[%emt 0:10:40]} Ne7 {[%emt 0:00:50]} 19. Kb1 {[%emt 0:04:34]} Rfd8 {[%emt 0:07:13]} 20. Qg2 {[%emt 0:06:00]} a6 {[%emt 0:00:00]} 21. Ba4 {[%emt 0:00:41]} b5 {[%emt 0:00:00]} 22. Bc2 {[%emt 0:00:53]} a5 {[%emt 0:01:29]} 23. Rg1 {[%emt 0:01:22]} g6 {[%emt 0:04:17]} 24. h4 {[%emt 0:03:16]} Ra7 {[%emt 0:02:50]} 25. h5 {[%emt 0:02:16]} (25. Qf3 $11) 25... Rad7 $2 {[%emt 0:00:24]} (25... Qxh5 $15 {keeps the upper hand.} 26. Ree1 Qh6) 26. hxg6 {[%emt 0:02:15]} hxg6 {[%emt 0:00:37] [#]} (26... fxg6 $16 {was worth a try.} 27. Bb3 Rd2) 27. Qg5 $2 {[%emt 0:11:06]} ({White must play} 27. Rh1 $1 $18 {[%cal Rh1h6]} Rd2 28. Qg1) 27... Qxg5 {[%emt 0:00:31]} 28. fxg5 {[%emt 0:00:12]} Rd5 {[%emt 0:02:17]} 29. Rh4 {[%emt 0:02:37]} (29. a4 $15) 29... Rxe5 {[%emt 0:01:22]} 30. Rgh1 {[%emt 0:01:45]} Kf8 {[%emt 0:00:10]} 31. Rh8+ {[%emt 0:05:16]} Ng8 {[%emt 0:00:13]} 32. Rf1 {[%emt 0:01:00]} Kg7 {[%emt 0:01:25]} 33. Rfh1 {[%emt 0:01:14]} Rxg5 {[%emt 0:00:34]} 34. R8h7+ {[%emt 0:00:28]} Kf8 {[%emt 0:01:06]} 35. Rf1 {[%emt 0:00:06]} Rd7 {[%emt 0:00:39]} 36. Be4 {[%emt 0:01:24]} Rc7 {[%emt 0:02:12]} 37. Kc2 {[%emt 0:01:08]} b4 {[%emt 0:03:48]} 38. Rf3 {[%emt 0:02:29]} Rg2+ {[%emt 0:01:55]} 39. Kd3 $2 {[%emt 0:00:11]} (39. Kd1 {might work better.}) 39... Rxb2 {[%emt 0:01:40]} 40. cxb4 {[%emt 0:03:26]} axb4 {[%emt 0:00:30]} 41. Kd4 {[%emt 0:01:04]} Rd2+ {[%emt 0:00:40]} 42. Bd3 {[%emt 0:02:49]} Rg2 {[%emt 0:02:12]} 43. Be4 {[%emt 0:02:10]} (43. Rf1 $142) 43... Rg4 $19 {[%emt 0:00:40]} 44. Rf2 {[%emt 0:01:39]} Re7 {[%emt 0:00:42]} 45. Ke3 {[%emt 0:02:19]} Rxe4+ {[%emt 0:00:15] Kd4} 0-1

[Event "Gibraltar Amateurs A 2020"]
[Site "Caleta"]
[Date "2020.01.21"]
[Round "3.17"]
[White "Mircov, Nicola-Alexandar"]
[Black "Guardia Bencomo, Tomas"]
[Result "1/2-1/2"]
[ECO "B06"]
[WhiteElo "1788"]
[BlackElo "1660"]
[Annotator "NA RC"]
[PlyCount "123"]
[EventDate "2020.01.20"]
[EventType "swiss"]
[EventCountry "GGB"]
[SourceTitle "playchess.com"]
[Source "ChessBase"]
[SourceQuality "1"]
[TimeControl "6600+10"]

1. e4 {[%emt 0:29:07]} g6 {[%emt 0:00:11]} 2. d4 {[%emt 0:07:36]} Bg7 {[%emt 0:00:07]} 3. Nc3 {[%emt 0:00:11]} d6 {[%emt 0:00:54]} 4. Be3 {[%emt 0:00:08]} a6 {[%emt 0:00:47]} 5. Qd2 {[%emt 0:00:33]} b5 {[%emt 0:00:43]} 6. f3 {[%emt 0:02:36]} Bb7 {[%emt 0:01:47]} 7. g4 {[%emt 0:01:22]} Nd7 {[%emt 0:02:44]} 8. Nge2 {[%emt 0:01:53]} e6 {[%emt 0:00:38]} 9. Ng3 {[%emt 0:00:27]} c5 {[%emt 0:05:24]} 10. h4 {[%emt 0:02:15]} Ne7 {[%emt 0:01:24]} 11. dxc5 {[%emt 0:05:03]} dxc5 {[%emt 0:06:22]} 12. Bh6 {[%emt 0:02:03]} Qc7 {[%emt 0:11:34]} 13. Bxg7 {[%emt 0:09:29]} Qxg3+ {[%emt 0:00:28]} 14. Ke2 {[%emt 0:01:37]} Rg8 {[%emt 0:02:05]} 15. Bh6 {[%emt 0:00:12]} Qc7 {[%emt 0:04:33]} 16. Bh3 {[%emt 0:02:59]} Rd8 {[%emt 0:03:55]} 17. Rad1 {[%emt 0:01:06]} f6 {[%emt 0:08:24]} 18. Be3 {[%emt 0:08:24]} Kf7 {[%emt 0:06:40]} 19. Qd6 {[%emt 0:01:47]} Qc8 {[%emt 0:03:18]} 20. Rd2 {[%emt 0:02:29]} Ne5 {[%emt 0:00:47]} 21. Qxc5 {[%emt 0:02:43]} Rxd2+ {[%emt 0:00:26]} 22. Kxd2 {[%emt 0:00:03]} Qxc5 {[%emt 0:01:05]} 23. Bxc5 {[%emt 0:00:03]} Nxf3+ {[%emt 0:00:20]} 24. Ke3 {[%emt 0:04:08]} Ne5 {[%emt 0:00:40]} 25. g5 {[%emt 0:03:59]} f5 {[%emt 0:00:55]} 26. Kf4 {[%emt 0:04:27]} N5c6 {[%emt 0:02:37]} 27. Rd1 {[%emt 0:05:38]} Rd8 {[%emt 0:01:04]} 28. Rxd8 {[%emt 0:00:23]} Nxd8 {[%emt 0:00:13]} 29. Ke5 {[%emt 0:00:40]} b4 {[%emt 0:01:15]} 30. exf5 {[%emt 0:06:36]} gxf5 {[%emt 0:03:01]} 31. Ne2 {[%emt 0:00:29]} Ng6+ {[%emt 0:02:52]} 32. Kd6 {[%emt 0:00:04]} Nxh4 {[%emt 0:00:30]} 33. Bxb4 {[%emt 0:01:21]} Be4 {[%emt 0:01:46]} 34. c4 {[%emt 0:01:04]} Bd3 {[%emt 0:00:35]} 35. Nf4 {[%emt 0:00:35]} Bxc4 {[%emt 0:00:37]} 36. b3 {[%emt 0:00:02]} Bb5 {[%emt 0:02:00]} 37. a4 {[%emt 0:00:04]} Be8 {[%emt 0:06:44]} 38. Bc3 {[%emt 0:00:01]} Nb7+ {[%emt 0:03:10]} 39. Kc7 {[%emt 0:00:02]} Nc5 {[%emt 0:00:36]} 40. Bf6 {[%emt 0:00:08]} Nxb3 {[%emt 0:00:32]} 41. Bf1 {[%emt 0:00:27]} Ng6 {[%emt 0:05:24]} 42. Nxe6 {[%emt 0:00:15]} Bxa4 {[%emt 0:00:33]} 43. Bc4 {[%emt 0:00:23]} Nf8 {[%emt 0:02:58]} 44. Nc5+ {[%emt 0:00:18]} Kg6 {[%emt 0:00:24]} 45. Nxa4 {[%emt 0:00:11]} Nd2 {[%emt 0:00:25]} 46. Bxa6 {[%emt 0:00:33]} Ne6+ {[%emt 0:00:30]} 47. Kd6 {[%emt 0:00:21]} Nxg5 {[%emt 0:00:21]} 48. Be7 {[%emt 0:00:17]} f4 {[%emt 0:00:57]} 49. Bd3+ {[%emt 0:00:14]} Kh5 {[%emt 0:00:35]} 50. Ke5 {[%emt 0:00:20]} f3 {[%emt 0:02:08]} 51. Bb4 {[%emt 0:00:07]} Nde4 {[%emt 0:02:05]} 52. Nc3 {[%emt 0:00:08]} Nxc3 {[%emt 0:01:08]} 53. Bxc3 {[%emt 0:00:01]} Kg4 {[%emt 0:00:16]} 54. Bd2 {[%emt 0:00:24]} h5 {[%emt 0:01:39]} 55. Bf5+ {[%emt 0:00:04]} Kg3 {[%emt 0:01:13]} 56. Bxg5 {[%emt 0:00:13]} f2 {[%emt 0:00:11]} 57. Bf4+ {[%emt 0:00:28]} Kg2 {[%emt 0:00:16]} 58. Be4+ {[%emt 0:00:14]} Kg1 {[%emt 0:00:12]} 59. Be3 {[%emt 0:00:10]} Kf1 {[%emt 0:00:03]} 60. Kf4 {[%emt 0:00:40]} Ke1 {[%emt 0:00:09]} 61. Bxf2+ {[%emt 0:00:15]} Kxf2 {[%emt 0:00:02]} 62. Kg5 {[%emt 0:00:30]} 1/2-1/2

[Event "Gibraltar Amateurs A 2020"]
[Site "Caleta"]
[Date "2020.01.21"]
[Round "3.18"]
[White "Stamenov, Valeriy"]
[Black "Salas Calvo, Alberto"]
[Result "1-0"]
[ECO "B08"]
[WhiteElo "1761"]
[BlackElo "1645"]
[Annotator "NA RC"]
[PlyCount "99"]
[EventDate "2020.01.20"]
[EventType "swiss"]
[EventCountry "GGB"]
[SourceTitle "playchess.com"]
[Source "ChessBase"]
[SourceQuality "1"]
[TimeControl "6600+10"]

1. e4 {[%emt 0:00:00]} d6 {[%emt 0:06:15]} 2. d4 {[%emt 0:00:00]} Nf6 {[%emt 0:00:06]} 3. Nc3 {[%emt 0:00:06]} g6 {[%emt 0:00:17]} 4. Nf3 {[%emt 0:00:01]} Bg7 {[%emt 0:00:26]} 5. h3 {[%emt 0:00:09]} O-O {[%emt 0:00:10]} 6. Be3 {[%emt 0:00:33]} c6 {[%emt 0:00:21]} 7. a4 {[%emt 0:00:10]} Qc7 {[%emt 0:00:38]} 8. Be2 {[%emt 0:01:25]} Nbd7 {[%emt 0:00:36]} 9. O-O {[%emt 0:06:04]} b6 {[%emt 0:01:56]} 10. Qd2 {[%emt 0:06:27]} Bb7 {[%emt 0:00:15]} 11. Bh6 {[%emt 0:16:50]} a6 {[%emt 0:00:38]} 12. Bxg7 {[%emt 0:06:12]} Kxg7 {[%emt 0:00:10]} 13. Bd3 {[%emt 0:01:27]} b5 {[%emt 0:00:40]} 14. Qe3 {[%emt 0:14:19]} Rfe8 {[%emt 0:04:32]} 15. e5 {[%emt 0:01:12]} dxe5 {[%emt 0:03:15]} 16. dxe5 {[%emt 0:02:02]} Nd5 {[%emt 0:04:49]} 17. Nxd5 {[%emt 0:00:19]} cxd5 {[%emt 0:00:14]} 18. axb5 {[%emt 0:00:17]} axb5 {[%emt 0:05:12]} 19. e6 {[%emt 0:06:56]} fxe6 {[%emt 0:01:45]} 20. Qxe6 {[%emt 0:00:11]} Nc5 {[%emt 0:00:46]} 21. Ng5 {[%emt 0:13:19]} Qf4 {[%emt 0:03:20]} 22. Qe3 {[%emt 0:03:39]} Qxe3 {[%emt 0:00:38]} 23. fxe3 {[%emt 0:00:02]} Rxa1 {[%emt 0:00:22]} 24. Rxa1 {[%emt 0:00:02]} Nxd3 {[%emt 0:00:29]} 25. cxd3 {[%emt 0:00:03]} Ra8 {[%emt 0:03:10]} 26. Rxa8 {[%emt 0:03:01]} Bxa8 {[%emt 0:00:06]} 27. Ne6+ {[%emt 0:00:35]} Kf6 {[%emt 0:00:42]} 28. Nd4 {[%emt 0:00:50]} Bb7 {[%emt 0:07:09]} 29. Nxb5 {[%emt 0:00:20]} Ba6 {[%emt 0:00:42]} 30. Nc7 {[%emt 0:01:19]} Bxd3 {[%emt 0:00:59]} 31. Nxd5+ {[%emt 0:00:08]} Kf7 {[%emt 0:00:25]} 32. Kf2 {[%emt 0:00:38]} Be4 {[%emt 0:00:35]} 33. Nc3 {[%emt 0:00:37]} Bb7 {[%emt 0:00:35]} 34. e4 {[%emt 0:04:47]} Ke6 {[%emt 0:00:51]} 35. Ke3 {[%emt 0:00:27]} Ke5 {[%emt 0:00:28]} 36. h4 {[%emt 0:01:07]} e6 {[%emt 0:02:46]} 37. g3 {[%emt 0:00:22]} Bc6 {[%emt 0:02:18]} 38. b4 {[%emt 0:01:38]} Bb7 {[%emt 0:00:30]} 39. b5 {[%emt 0:00:48]} Ba8 {[%emt 0:00:12]} 40. Kd3 {[%emt 0:02:46]} Kd6 {[%emt 0:04:31]} 41. Kd4 {[%emt 0:00:30]} e5+ {[%emt 0:00:57]} 42. Kc4 {[%emt 0:00:15]} Bb7 {[%emt 0:00:40]} 43. Kb4 {[%emt 0:00:40]} Ba8 {[%emt 0:00:56]} 44. Kc4 {[%emt 0:02:49]} Bb7 {[%emt 0:00:32]} 45. Nd5 {[%emt 0:02:39]} Ba8 {[%emt 0:04:06]} 46. g4 {[%emt 0:00:15]} Bb7 {[%emt 0:00:36]} 47. g5 {[%emt 0:00:11]} Bxd5+ {[%emt 0:03:51]} 48. exd5 {[%emt 0:00:11]} e4 {[%emt 0:00:06]} 49. b6 {[%emt 0:02:10]} e3 {[%emt 0:00:09]} 50. Kd3 {[%emt 0:00:13]} 1-0

[Event "Gibraltar Amateurs A 2020"]
[Site "Caleta"]
[Date "2020.01.23"]
[Round "4.2"]
[White "Ashwani Kumar Grover"]
[Black "Nebel, Uwe"]
[Result "1-0"]
[ECO "B21"]
[WhiteElo "1731"]
[BlackElo "1847"]
[Annotator "NA"]
[PlyCount "49"]
[EventDate "2020.01.20"]
[EventType "swiss"]
[EventCountry "GGB"]
[SourceTitle "playchess.com"]
[Source "ChessBase"]
[SourceQuality "1"]
[TimeControl "6600+10"]

{[%evp 8,46,5,-1,18,32767,8,32767,32767,32767,32767,32767,32767,32767,32767,-18,32767,32767,7,-7,32767,32767,32767,32767,172,32767,140,209,246,32767,32767,-130,-90,-171,-68,-151,-157,-161,29990,29991,29991]} 1. e4 {[%emt 0:17:07]} c5 {[%emt 0:00:01]} 2. Nc3 {[%emt 0:01:07]} e6 {[%emt 0:00:33]} 3. f4 {[%emt 0:00:09]} d5 {[%emt 0:00:37]} 4. Nf3 {[%emt 0:00:07]} dxe4 {[%emt 0:01:08]} 5. Nxe4 {[%emt 0:00:30]} Nf6 {[%emt 0:00:34]} 6. d3 {[%emt 0:07:46] B21: Sicilian: 2 f4 and Morra Gambit} Nc6 {[%emt 0:07:32]} 7. g3 {[%emt 0:00:48]} Be7 {[%emt 0:01:22]} 8. Bg2 {[%emt 0:00:17]} Qc7 {[%emt 0:09:30]} 9. Be3 $146 {[%emt 0:02:54]} ({Predecessor:} 9. O-O O-O 10. Kh1 b6 11. Nfg5 Bb7 12. Nxf6+ Bxf6 13. Ne4 {1-0 (76) Short,N (2683)-Wojtkiewicz,A (2563) ICC INT 2000}) 9... b6 {[%emt 0:01:37]} 10. Ne5 {[%emt 0:02:44]} Nd5 {[%emt 0:04:01]} 11. Bd2 {[%emt 0:07:24]} Nxe5 {[%emt 0:02:37]} 12. fxe5 {[%emt 0:00:14]} Qxe5 {[%emt 0:00:12]} 13. c4 {[%emt 0:01:08]} f5 {[%emt 0:03:42]} 14. cxd5 {[%emt 0:00:20]} fxe4 {[%emt 0:00:09]} 15. Bc3 {[%emt 0:00:40]} Qg5 {[%emt 0:03:33]} 16. O-O {[%emt 0:15:59]} exd5 {[%emt 0:05:54]} 17. dxe4 {[%emt 0:01:32]} d4 {[%emt 0:05:29]} (17... Bg4 $16 {is a better defense.} 18. Qxd5 Qxd5 19. exd5 Bf6) 18. e5 {[%emt 0:00:21]} Rb8 {[%emt 0:01:20]} 19. Bxd4 $2 {[%emt 0:14:50]} (19. Bd2 $18 Qg6 {[#]} 20. e6 $1 {[%mdl 512]} Bxe6 21. Qa4+ Kd8 22. Qxa7) 19... cxd4 {[%emt 0:01:28]} 20. Bc6+ {[%emt 0:00:48]} (20. Rf4 $17 Qh6 21. Qa4+ b5 22. Qxd4) 20... Kd8 {[%emt 0:03:28]} 21. Qxd4+ {[%emt 0:00:48]} ({White must play} 21. Rf4 Be6 22. Bg2 (22. Qxd4+ Kc7 $11)) 21... Kc7 {[%emt 0:00:09]} 22. Rac1 {[%emt 0:00:28] [#]} Bc5 {[%emt 0:00:59]} (22... Rb7 $1 $19 23. Bf3+ (23. Bxb7+ Kxb7) 23... Kb8) 23. Rxc5 {[%emt 0:00:18]} bxc5 {[%emt 0:04:07]} 24. Qxc5 {[%emt 0:14:57]} Bb7 {[%emt 0:14:09]} 25. Rf7+ {[%emt 0:01:07]} 1-0

[Event "Gibraltar Amateurs A 2020"]
[Site "Caleta"]
[Date "2020.01.23"]
[Round "4.3"]
[White "Bussmann, John"]
[Black "Teh, Wee Zhun"]
[Result "0-1"]
[ECO "A12"]
[WhiteElo "1752"]
[BlackElo "1857"]
[Annotator "NA"]
[PlyCount "102"]
[EventDate "2020.01.20"]
[EventType "swiss"]
[EventCountry "GGB"]
[SourceTitle "playchess.com"]
[Source "ChessBase"]
[SourceQuality "1"]
[TimeControl "6600+10"]

1. Nf3 {[%emt 0:00:00]} d5 {[%emt 0:13:23]} 2. g3 {[%emt 0:00:04]} c6 {[%emt 0:00:37]} 3. Bg2 {[%emt 0:01:04]} Nf6 {[%emt 0:01:35]} 4. d3 {[%emt 0:02:21]} Bg4 {[%emt 0:01:50]} 5. Nbd2 {[%emt 0:01:34]} Nbd7 {[%emt 0:00:20]} 6. c4 {[%emt 0:06:22]} e6 {[%emt 0:01:51]} 7. O-O {[%emt 0:03:26]} Be7 {[%emt 0:02:35]} 8. b3 {[%emt 0:02:12]} O-O {[%emt 0:01:08]} 9. Bb2 {[%emt 0:00:32]} a5 {[%emt 0:00:39]} 10. a3 {[%emt 0:01:20]} Qb8 {[%emt 0:06:45]} 11. d4 $146 {[%emt 0:09:34] A12: English Opening: 1...c6 with b3 by White} ({Predecessor:} 11. Rc1 Rc8 12. Rc2 Ne8 13. Qa1 Bf6 14. Rfc1 Qa7 15. Bxf6 Nexf6 16. h3 Bh5 17. cxd5 exd5 18. Qb2 {½-½ (18) Kazhgaleyev,M (2576)-Khusnutdinov,R (2472) Melbourne 2014}) 11... h6 {[%emt 0:03:41]} 12. Re1 {[%emt 0:05:01]} Bf5 {[%emt 0:06:30]} 13. Ne5 {[%emt 0:01:45]} Rd8 {[%emt 0:08:23]} 14. f4 {[%emt 0:07:17]} Ng4 {[%emt 0:07:28]} (14... c5 $11) 15. e4 {[%emt 0:06:22]} Ngxe5 {[%emt 0:03:55]} 16. fxe5 {[%emt 0:01:00]} dxe4 {[%emt 0:00:25]} 17. Bxe4 {[%emt 0:01:40]} Bxe4 {[%emt 0:01:16]} 18. Rxe4 {[%emt 0:00:26]} f5 {[%emt 0:08:24]} (18... b5 $11) 19. exf6 {[%emt 0:02:47]} Bxf6 {[%emt 0:00:25]} 20. Qh5 {[%emt 0:07:28]} ({Better is} 20. Rxe6 $16 Re8 21. Qg4) 20... Qd6 {[%emt 0:06:02]} (20... e5 $11 {remains equal.}) 21. Rae1 {[%emt 0:08:25]} Nf8 {[%emt 0:03:39]} 22. Nf3 {[%emt 0:01:08]} Qe7 {[%emt 0:04:24]} 23. Bc1 {[%emt 0:01:31]} Qf7 {[%emt 0:00:45]} 24. Qh3 {[%emt 0:00:52]} b5 {[%emt 0:10:07]} 25. Rf1 {[%emt 0:01:54]} Qg6 {[%emt 0:01:29]} (25... Qe8 $14) 26. Rg4 {[%emt 0:02:38]} Qh7 {[%emt 0:02:00]} 27. Qh5 {[%emt 0:13:32]} Qf5 {[%emt 0:02:47]} 28. Ng5 $1 {[%emt 0:03:35]} hxg5 {[%emt 0:02:25]} 29. Rxf5 {[%emt 0:00:17]} exf5 {[%emt 0:00:01]} 30. Rxg5 {[%emt 0:01:34]} Bxg5 {[%emt 0:00:14]} 31. Qxg5 {[%emt 0:00:39]} Rxd4 {[%emt 0:00:55]} 32. cxb5 {[%emt 0:00:59]} cxb5 {[%emt 0:00:45]} 33. Bb2 {[%emt 0:00:51]} Rd1+ {[%emt 0:02:35]} 34. Kg2 {[%emt 0:01:15]} Ra7 {[%emt 0:00:34]} 35. Kf3 {[%emt 0:02:58]} (35. Qe3 $11 {keeps the balance.} Rc7 36. Bc3) 35... Rad7 {[%emt 0:00:42]} 36. h4 $2 {[%emt 0:01:33]} (36. Ke2 $17) 36... R7d3+ $2 {[%emt 0:00:25]} ({Black should play} 36... R1d2 $19 37. Qxf5 Rf7) 37. Ke2 {[%emt 0:00:32]} Rd7 {[%emt 0:00:28]} 38. Bc3 {[%emt 0:00:36]} R1d3 {[%emt 0:00:41]} 39. Bxa5 {[%emt 0:01:05]} Rxb3 {[%emt 0:00:23]} 40. Bb4 {[%emt 0:00:28]} Ne6 {[%emt 0:00:38]} 41. Qh5 $15 {[%emt 0:01:22]} Rf7 {[%emt 0:01:40]} 42. Qg6 {[%emt 0:00:31]} Nd4+ {[%emt 0:00:46]} 43. Kd2 {[%emt 0:00:35]} Nf3+ {[%emt 0:00:14]} 44. Ke2 {[%emt 0:01:04]} Nd4+ {[%emt 0:00:01]} 45. Kf1 {[%emt 0:00:33]} f4 {[%emt 0:00:43]} 46. g4 {[%emt 0:01:23]} Rf3+ {[%emt 0:00:16]} 47. Kg2 {[%emt 0:00:12]} Rg3+ {[%emt 0:00:05]} 48. Kf2 {[%emt 0:00:15]} Rf3+ {[%emt 0:00:04]} 49. Ke1 {[%emt 0:00:58]} Re3+ {[%emt 0:00:25]} 50. Kf1 {[%emt 0:00:28]} Rc7 {[%emt 0:00:17]} 51. Qb6 {[%emt 0:00:59]} Rc1+ {[%emt 0:00:14]} 0-1

[Event "Gibraltar Amateurs A 2020"]
[Site "Caleta"]
[Date "2020.01.23"]
[Round "4.4"]
[White "Jacob, Sydney J"]
[Black "Zitan, Abdelhay"]
[Result "1/2-1/2"]
[ECO "C91"]
[WhiteElo "1816"]
[BlackElo "1705"]
[Annotator "NA"]
[PlyCount "62"]
[EventDate "2020.01.20"]
[EventType "swiss"]
[EventCountry "GGB"]
[SourceTitle "playchess.com"]
[Source "ChessBase"]
[SourceQuality "1"]
[TimeControl "6600+10"]

{[%evp 11,62,32,25,32767,38,31,38,32767,32767,32767,42,32767,32767,32767,23,32767,32767,32767,32767,32767,32767,40,32767,32767,32767,0,40,0,32767,32767,32767,19,32767,-10,0,32767,0,-15,32767,32767,-12,-9,-13,-3,0,0,0,32767,32767,32767,68,0,22]} 1. e4 {[%emt 0:00:00]} e5 {[%emt 0:00:14]} 2. Nf3 {[%emt 0:00:00]} Nc6 {[%emt 0:00:08]} 3. Bb5 {[%emt 0:00:10]} a6 {[%emt 0:00:28]} 4. Ba4 {[%emt 0:00:09]} Nf6 {[%emt 0:00:36]} 5. O-O {[%emt 0:00:25]} b5 {[%emt 0:00:53]} 6. Bb3 {[%emt 0:00:11]} Be7 {[%emt 0:00:51]} 7. Re1 {[%emt 0:04:10]} d6 {[%emt 0:01:52]} 8. c3 {[%emt 0:00:28]} O-O {[%emt 0:00:32]} 9. d4 {[%emt 0:00:17]} Bg4 {[%emt 0:00:57]} 10. d5 {[%emt 0:05:44]} Nb8 {[%emt 0:01:37]} 11. Nbd2 {[%emt 0:01:42]} c6 {[%emt 0:00:36] C91: Closed Ruy Lopez: 7...d6 8 c3 0-0 9 d4} 12. dxc6 {[%emt 0:00:39]} (12. h3 Bc8 13. dxc6 Nxc6 14. Nf1 h6 15. Ng3 Be6 16. a4 Qd7 17. Nh4 d5 18. exd5 Bxd5 19. Nhf5 {1-0 (27) Quesada Perez,Y (2423)-De la Paz Perdomo,F (2486) Ciego de Avila 2010}) 12... Nxc6 {[%emt 0:00:19]} 13. Nf1 {[%emt 0:00:45]} Na5 {[%emt 0:04:31]} 14. Bc2 {[%emt 0:01:28]} Re8 {[%emt 0:09:24]} 15. Ng3 {[%emt 0:00:22]} Nc6 {[%emt 0:02:11]} 16. h3 {[%emt 0:00:22]} Bd7 $146 {[%emt 0:05:18]} ({Predecessor:} 16... Be6 17. Ng5 Qd7 18. Nxe6 Qxe6 19. Bg5 {1-0 (61) Bedolla,L (2005)-Silva,A Novi Sad 1990}) 17. Bg5 {[%emt 0:06:56]} Be6 {[%emt 0:06:33]} 18. Qd2 {[%emt 0:05:10]} Qc7 {[%emt 0:04:15]} 19. Nf5 {[%emt 0:07:21]} Bxf5 {[%emt 0:04:07]} 20. exf5 {[%emt 0:00:08]} Red8 {[%emt 0:05:57]} 21. Qe2 {[%emt 0:04:23]} h6 {[%emt 0:03:04]} 22. Bd2 {[%emt 0:03:17]} Rab8 {[%emt 0:03:24]} 23. Bd3 {[%emt 0:06:23]} Nd7 {[%emt 0:05:57]} 24. Rad1 {[%emt 0:10:37]} d5 {[%emt 0:01:18]} 25. Bb1 {[%emt 0:00:43]} e4 {[%emt 0:01:18]} 26. Nh2 {[%emt 0:01:31]} Nf6 {[%emt 0:05:42]} 27. Ng4 {[%emt 0:02:57]} Nxg4 {[%emt 0:02:50]} 28. Qxg4 {[%emt 0:00:45]} Ne5 {[%emt 0:04:07]} 29. Bf4 {[%emt 0:09:05]} Bd6 {[%emt 0:04:26]} 30. Qh5 {[%emt 0:04:33]} Be7 {[%emt 0:06:04]} (30... Nc4 $11 31. Bc1 f6) 31. Qe2 {[%emt 0:08:05]} ({Better is} 31. a3 $14) 31... Bf6 $11 {[%emt 0:02:51]} 1/2-1/2

[Event "Gibraltar Amateurs A 2020"]
[Site "Caleta"]
[Date "2020.01.23"]
[Round "4.5"]
[White "White, Gary"]
[Black "Dragic, Dragan"]
[Result "0-1"]
[ECO "A02"]
[WhiteElo "1608"]
[BlackElo "1781"]
[Annotator "NA"]
[PlyCount "76"]
[EventDate "2020.01.20"]
[EventType "swiss"]
[EventCountry "GGB"]
[SourceTitle "playchess.com"]
[Source "ChessBase"]
[SourceQuality "1"]
[TimeControl "6600+10"]

1. f4 {[%emt 0:00:00]} e5 {[%emt 0:08:22]} 2. fxe5 {[%emt 0:03:07]} d6 {[%emt 0:00:02]} 3. exd6 {[%emt 0:01:09]} Bxd6 {[%emt 0:00:03]} 4. Nf3 {[%emt 0:00:09]} g5 {[%emt 0:02:10]} 5. g3 {[%emt 0:03:11]} Nh6 {[%emt 0:13:09]} 6. d4 {[%emt 0:00:44]} f6 {[%emt 0:02:29]} 7. e4 {[%emt 0:07:37]} Bg4 {[%emt 0:01:42]} 8. Be2 {[%emt 0:03:14]} Nc6 {[%emt 0:01:03]} 9. e5 {[%emt 0:14:00]} Bxf3 {[%emt 0:05:19]} 10. Bxf3 {[%emt 0:01:36]} fxe5 {[%emt 0:00:35]} 11. Bxc6+ {[%emt 0:03:16]} bxc6 {[%emt 0:00:12]} 12. dxe5 {[%emt 0:00:27]} O-O {[%emt 0:10:38]} 13. Nc3 {[%emt 0:03:38]} Qe7 {[%emt 0:02:00]} 14. Qe2 {[%emt 0:02:29]} Bxe5 {[%emt 0:03:40]} 15. Bd2 {[%emt 0:00:41]} Rae8 {[%emt 0:00:48]} 16. O-O-O {[%emt 0:00:48]} Nf7 {[%emt 0:01:03]} 17. Qc4 {[%emt 0:02:33]} Qf6 {[%emt 0:05:46]} 18. Rhf1 {[%emt 0:01:24]} Qg7 {[%emt 0:01:56]} 19. Na4 {[%emt 0:05:35]} Rb8 {[%emt 0:10:43]} 20. Bc3 {[%emt 0:04:56]} Kh8 {[%emt 0:16:21]} 21. Qxc6 {[%emt 0:06:08]} Bxc3 {[%emt 0:08:12]} 22. Qxc3 {[%emt 0:03:46]} Nd6 {[%emt 0:00:18]} 23. Qxg7+ {[%emt 0:05:33]} Kxg7 {[%emt 0:00:02]} 24. Nc5 {[%emt 0:00:24]} Rxf1 {[%emt 0:01:52]} 25. Rxf1 {[%emt 0:00:19]} Re8 {[%emt 0:00:18]} 26. b3 {[%emt 0:08:47]} Re2 {[%emt 0:01:51]} 27. h4 {[%emt 0:02:00]} g4 {[%emt 0:00:16]} 28. Nd3 {[%emt 0:04:48]} Ne4 {[%emt 0:00:41]} 29. Rg1 {[%emt 0:02:29]} Re3 {[%emt 0:01:35]} 30. Nf4 {[%emt 0:00:33]} Kf7 {[%emt 0:02:28]} 31. Nd5 {[%emt 0:02:25]} Rxg3 {[%emt 0:00:14]} 32. Rf1+ {[%emt 0:00:06]} Rf3 {[%emt 0:00:19]} 33. Rxf3+ {[%emt 0:03:20]} gxf3 {[%emt 0:00:05]} 34. Ne3 {[%emt 0:00:44]} Kg6 {[%emt 0:01:41]} 35. Nf1 {[%emt 0:02:38]} Kh5 {[%emt 0:00:24]} 36. c4 {[%emt 0:01:02]} Kxh4 {[%emt 0:00:25]} 37. Kc2 {[%emt 0:00:44]} Ng3 {[%emt 0:00:11]} 38. Ne3 {[%emt 0:02:05]} f2 {[%emt 0:00:22]} 0-1